Cogmind - Beta 15 @@@ ROGUE MODE // 2025.07.10 @ 21:13:18 Player: Dingot Result: Destroyed by B-48 Gladiator with Mace Performance ------------- Evolutions (4) 2000 Regions Visited (7) 1400 Robots Destroyed (0) 0 Value Destroyed (0) 0 Prototype IDs (0) 0 Alien Tech Used (0) 0 Bonus (1525) 1525 TOTAL SCORE: 4925 Bonus ------- Pacifist 1325 Entered Garrisons 200 Cogmind --------- Core Integrity 0/850 Matter 169/300 Energy 100/100 System Corruption 1% Temperature Cool (9) Movement Core (50) Location -6/Garrison Parts ------- > --- POWER (1) -------- (None) > --- PROPULSION (2) --- (None) > --- UTILITY (10) ----- (None) > --- WEAPON (2) ------- (None) > --- INVENTORY (5) ---- Hacking Suite Peak State ------------ None Favorites ----------- Power None Propulsion None Utility None Weapon None Build | -11 -10 -9 -8 -7 -7 -6 -6 ------- Run | Yrd Mat Mat Mat Fac Sto Fac Gar Slots Evolved 8 | . . 2 2 2 . 2 . Power . | . . . . . . . . Propulsion . | . . . . . . . . Utility 8 | . . 2 2 2 . 2 . Weapon . | . . . . . . . . Parts Attached . | . . . . . . . . Power . | . . . . . . . . Engine . | . . . . . . . . Core . | . . . . . . . . Reactor . | . . . . . . . . Propulsion . | . . . . . . . . Treads . | . . . . . . . . Leg . | . . . . . . . . Wheel . | . . . . . . . . Hover . | . . . . . . . . Flight . | . . . . . . . . Utility . | . . . . . . . . Device . | . . . . . . . . Storage . | . . . . . . . . Processor . | . . . . . . . . Hackware . | . . . . . . . . Protection . | . . . . . . . . Artifact . | . . . . . . . . Weapon . | . . . . . . . . Energy Gun . | . . . . . . . . Energy Cannon . | . . . . . . . . Ballistic Gun . | . . . . . . . . Ballistic Cannon . | . . . . . . . . Launcher . | . . . . . . . . Special Weapon . | . . . . . . . . Impact Weapon . | . . . . . . . . Slashing Weapon . | . . . . . . . . Piercing Weapon . | . . . . . . . . Special Melee Weapon . | . . . . . . . . Unidentified Prototypes . | . . . . . . . . Parts Lost . | . . . . . . . . Power . | . . . . . . . . Propulsion . | . . . . . . . . Utility . | . . . . . . . . Weapon . | . . . . . . . . Highest Loss Streak . | . . . . . . . . To Critical Strikes . | . . . . . . . . Average Backups . | . . . . 1 1 1 1 Power . | . . . . . . . . Propulsion . | . . . . . . . . Utility . | . . . . 1 1 1 1 Weapon . | . . . . . . . . Tool/Special . | . . . . . . . . Unused Backups 1 | . . . . . . . 1 Power . | . . . . . . . . Propulsion . | . . . . . . . . Utility 1 | . . . . . . . 1 Weapon . | . . . . . . . . Tool/Special . | . . . . . . . . Average Slot Usage (%) . | . . . . . . . . Peak Build Rating . | . . . . . . . . Average Rating . | . . . . . . . . On Entrance . | . . . . . . . . Naked Turns 458 | . 27 35 51 89 65 48 143 Heaviest Build . | . . . . . . . . Greatest Support 3 | 3 3 3 3 3 3 3 3 Greatest Overweight (x) . | . . . . . . . . Average Overweight (x) . | . . . . . . . . Largest Inventory Capacity 5 | 5 5 5 5 5 5 5 5 Average Capacity 5 | 5 5 5 5 5 5 5 5 Most Carried 1 | . . . 1 1 1 1 1 Average Carried . | . . . . 1 1 1 1 Final Capacity 5 | 5 5 5 5 5 5 5 5 Final Carried 1 | . . . 1 1 1 1 1 Class Distribution -------------------- 100% | Mutant Dominant Class ---------------- Mutant | -10/Materials Mutant | -9/Materials Mutant | -8/Materials Mutant | -7/Factory Mutant | -7/Storage Mutant | -6/Factory Mutant | -6/Garrison Resources | -11 -10 -9 -8 -7 -7 -6 -6 ----------- Run | Yrd Mat Mat Mat Fac Sto Fac Gar Matter Collected 30 | . . . . . . 30 . Remotely . | . . . . . . . . Salvage Created . | . . . . . . . . Parts . | . . . . . . . . Haulers Intercepted . | . . . . . . . . Recyclers Shooed . | . . . . . . . . Parts Field Recycled . | . . . . . . . . Retrieved Matter . | . . . . . . . . Parts Self-Destructed . | . . . . . . . . Prevented . | . . . . . . . . Kills | -11 -10 -9 -8 -7 -7 -6 -6 ------- Run | Yrd Mat Mat Mat Fac Sto Fac Gar Combat Hostiles Destroyed . | . . . . . . . . Classes Destroyed . | . . . . . . . . Best Kill Streak . | . . . . . . . . Combat Bots Only . | . . . . . . . . Max Kills in Single Turn . | . . . . . . . . Gunslinging . | . . . . . . . . Exploded . | . . . . . . . . Melee . | . . . . . . . . Uniques/NPCs Destroyed . | . . . . . . . . Combat | -11 -10 -9 -8 -7 -7 -6 -6 -------- Run | Yrd Mat Mat Mat Fac Sto Fac Gar Hostile Shots Fired 171 | . 12 3 12 38 36 . 70 Missed 74 | . 5 2 5 19 19 . 24 Hits 97 | . 7 1 7 19 17 . 46 Melee 3 | . . . . . . . 3 Projectile 94 | . 7 1 7 19 17 . 43 Critical Strikes 3 | . . . . 1 . . 2 Damage Taken 1414 | . 79 11 112 205 157 30 820 Core 1414 | . 79 11 112 205 157 30 820 Absorbed by Shields . | . . . . . . . . Core Remaining (%) 78 | 100 68 97 79 . 48 . . Volleys Fired . | . . . . . . . . Largest . | . . . . . . . . Hottest . | . . . . . . . . Shots Fired . | . . . . . . . . Gun . | . . . . . . . . Cannon . | . . . . . . . . Launcher . | . . . . . . . . Special . | . . . . . . . . Kinetic . | . . . . . . . . Thermal . | . . . . . . . . Explosive . | . . . . . . . . Electromagnetic . | . . . . . . . . Robot Hit Streak . | . . . . . . . . Robot Miss Streak . | . . . . . . . . Penetration Max . | . . . . . . . . Secondary Targets . | . . . . . . . . Shots Hit Robots . | . . . . . . . . Core Hits 2 | . . . . . 1 1 . Critical Kills . | . . . . . . . . Critical Parts Destroyed . | . . . . . . . . Critical Strikes . | . . . . . . . . Melee Attacks . | . . . . . . . . Impact . | . . . . . . . . Slashing . | . . . . . . . . Piercing . | . . . . . . . . Sneak Attacks . | . . . . . . . . Combat Hostiles . | . . . . . . . . Follow-up Attacks . | . . . . . . . . Damage Inflicted 49 | . . . 15 . 22 12 . Guns . | . . . . . . . . Cannons . | . . . . . . . . Explosions . | . . . . . . . . Melee . | . . . . . . . . Ramming 49 | . . . 15 . 22 12 . Kinetic . | . . . . . . . . Thermal . | . . . . . . . . Explosive . | . . . . . . . . Electromagnetic . | . . . . . . . . Impact . | . . . . . . . . Slashing . | . . . . . . . . Piercing . | . . . . . . . . Highest Corruption 3 | . . . . 2 3 . 1 Average Corruption 2 | . . . . 1 2 . 1 Corruption Purged . | . . . . . . . . Corruption Blocked . | . . . . . . . . Effects 2 | . . . . . 2 . . Message Errors 1 | . . . . . 1 . . Energy Discharges 1 | . . . . . 1 . . Overload Shots . | . . . . . . . . Overflow Damage . | . . . . . . . . Projectiles . | . . . . . . . . Explosions . | . . . . . . . . Melee . | . . . . . . . . Knockbacks . | . . . . . . . . Impact . | . . . . . . . . Kinetic . | . . . . . . . . Secondary . | . . . . . . . . Self-Inflicted Damage 23 | . . . 7 . 10 6 . Shots . | . . . . . . . . Rammed 11 | . . . 2 . 6 3 . Targets Rammed 11 | . . . 2 . 6 3 . Kicked . | . . . . . . . . Crushed . | . . . . . . . . Highest Temperature . | . . . . . . . . Average Temperature . | . . . . . . . . Received Heat Transfer 267 | . 42 6 27 30 36 . 126 Siege Activations . | . . . . . . . . Martial Activations . | . . . . . . . . Shielding Activations . | . . . . . . . . Robots Disrupted . | . . . . . . . . Combat Hostiles . | . . . . . . . . Robots Corrupted . | . . . . . . . . Combat Hostiles . | . . . . . . . . Parts Fried . | . . . . . . . . Impact Corruptions . | . . . . . . . . Robots Melted . | . . . . . . . . Combat Hostiles . | . . . . . . . . Parts Melted . | . . . . . . . . Heat Transferred . | . . . . . . . . Parts Sabotaged . | . . . . . . . . Parts Stolen . | . . . . . . . . Parts Stripped . | . . . . . . . . Power Chain Reactions . | . . . . . . . . Alert | -11 -10 -9 -8 -7 -7 -6 -6 ------- Run | Yrd Mat Mat Mat Fac Sto Fac Gar Maximum Alert Level . | . . . . . . . . Low Security (%) 100 | 100 100 100 100 100 100 100 100 Level 1 . | . . . . . . . . Level 2 . | . . . . . . . . Level 3 . | . . . . . . . . Level 4 . | . . . . . . . . Level 5 . | . . . . . . . . High Security . | . . . . . . . . Max Security . | . . . . . . . . Peak Influence 50 | . . 2 . 15 35 15 50 Initial 15 | . . . . . . 15 . Average 4 | . . . . 3 2 8 7 Influence Increases 112 | . . 2 . 15 45 . 50 Successful Hack 2 | . . 2 . . . . . Anti-Garrison Action 50 | . . . . . . . 50 Partial Spotted 30 | . . . . 15 15 . . Lose Combat Pursuer 30 | . . . . . 30 . . Influence Decreases 62 | . . 2 . 15 10 35 . Entered New Map 20 | . . . . . . 20 . Time Decay 42 | . . 2 . 15 10 15 . Squads Dispatched 3 | . 1 1 1 . . . . Investigation 2 | . 1 1 . . . . . Extermination . | . . . . . . . . Reinforcement 1 | . . . 1 . . . . Assault . | . . . . . . . . Garrison . | . . . . . . . . Intercept . | . . . . . . . . Searches Triggered . | . . . . . . . . Construction Impeded . | . . . . . . . . Haulers Reinforced . | . . . . . . . . Active Scanning Responses . | . . . . . . . . Cargo Convoy Interrupts . | . . . . . . . . Stealth | -11 -10 -9 -8 -7 -7 -6 -6 --------- Run | Yrd Mat Mat Mat Fac Sto Fac Gar Distress Signals 3 | . . 1 1 . 1 . . Communications Jammed . | . . . . . . . . Distress Signals . | . . . . . . . . Times Spotted 34 | . 5 2 7 5 6 1 8 Peak Tracking Total 8 | . 5 2 6 5 7 1 8 Tactical Retreats 1 | . . . . . 1 . . Traps | -11 -10 -9 -8 -7 -7 -6 -6 ------- Run | Yrd Mat Mat Mat Fac Sto Fac Gar Traps Triggered 4 | . 1 . . . 1 1 1 Indirectly . | . . . . . . . . Trap Hack Attempts . | . . . . . . . . Triggered . | . . . . . . . . Disarmed . | . . . . . . . . Reprogrammed . | . . . . . . . . Reused . | . . . . . . . . Traps Extracted . | . . . . . . . . Installed . | . . . . . . . . Triggered . | . . . . . . . . Machines | -11 -10 -9 -8 -7 -7 -6 -6 ---------- Run | Yrd Mat Mat Mat Fac Sto Fac Gar Machines Disabled . | . . . . . . . . Max in Single Turn . | . . . . . . . . Machines Repaired . | . . . . . . . . Machines Dismantled . | . . . . . . . . Machines Sabotaged . | . . . . . . . . Overloaded Fab Kills . | . . . . . . . . Hacking | -11 -10 -9 -8 -7 -7 -6 -6 --------- Run | Yrd Mat Mat Mat Fac Sto Fac Gar Machines Accessed 4 | . . 1 . . 1 1 1 Terminals 3 | . . 1 . . 1 . 1 Fabricators . | . . . . . . . . Repair Stations . | . . . . . . . . Recycling Units . | . . . . . . . . Scanalyzers . | . . . . . . . . Garrison Access 1 | . . . . . . 1 . Total Hacks 10 | . . 4 . . 1 2 3 Successful 3 | . . 1 . . 1 1 . Failed 7 | . . 3 . . . 1 3 Catastrophic 1 | . . . . . . . 1 Database Lockouts . | . . . . . . . . Manual 6 | . . 3 . . . . 3 Terminals 8 | . . 4 . . 1 . 3 Fabricators . | . . . . . . . . Repair Stations . | . . . . . . . . Recycling Units . | . . . . . . . . Scanalyzers . | . . . . . . . . Garrison Access 2 | . . . . . . 2 . Terminal Hacks 2 | . . 1 . . 1 . . Record 1 | . . 1 . . . . . Open Door 1 | . . . . . 1 . . Fabricator Hacks . | . . . . . . . . Repair Station Hacks . | . . . . . . . . Recycling Unit Hacks . | . . . . . . . . Scanalyzer . | . . . . . . . . Garrison Access Hacks 1 | . . . . . . 1 . Unlock Access 1 | . . . . . . 1 . Unauthorized Hacks . | . . . . . . . . Terminals . | . . . . . . . . Fabricators . | . . . . . . . . Repair Stations . | . . . . . . . . Recycling Units . | . . . . . . . . Scanalyzers . | . . . . . . . . Garrison Access . | . . . . . . . . Data Cores Recovered . | . . . . . . . . Used . | . . . . . . . . Hacking Detections 3 | . . 1 . . . 1 1 Full Trace Events 2 | . . 1 . . . . 1 Feedback Events . | . . . . . . . . Feedback Blocked . | . . . . . . . . Robot Schematics Acquired . | . . . . . . . . Robots Built . | . . . . . . . . Authchips . | . . . . . . . . Time . | . . . . . . . . Total Robot Build Rating . | . . . . . . . . Part Schematics Acquired . | . . . . . . . . Parts Built . | . . . . . . . . Authchips . | . . . . . . . . Time . | . . . . . . . . Total Part Build Rating . | . . . . . . . . Parts Repaired . | . . . . . . . . Time . | . . . . . . . . Parts Recycled . | . . . . . . . . Recycled Matter . | . . . . . . . . Retrieved Matter . | . . . . . . . . Retrieved Components . | . . . . . . . . Parts Scanalyzed . | . . . . . . . . Part Schematics Acquired . | . . . . . . . . Parts Damaged . | . . . . . . . . Bothacking | -11 -10 -9 -8 -7 -7 -6 -6 ------------ Run | Yrd Mat Mat Mat Fac Sto Fac Gar Used RIF Installer . | . . . . . . . . Robots Hacked . | . . . . . . . . Non-combat . | . . . . . . . . Combat . | . . . . . . . . Robot Hacks Applied . | . . . . . . . . Relay Couplers Released . | . . . . . . . . Fabnet Peak Effective % . | . . . . . . . . Robots Rewired . | . . . . . . . . Allies Hacked . | . . . . . . . . Hacks Repelled . | . . . . . . . . Allies | -11 -10 -9 -8 -7 -7 -6 -6 -------- Run | Yrd Mat Mat Mat Fac Sto Fac Gar Total Allies . | . . . . . . . . Largest Group . | . . . . . . . . Highest-Rated Group . | . . . . . . . . Highest-Rated Ally . | . . . . . . . . Total Orders . | . . . . . . . . Ally Attacks . | . . . . . . . . Total Damage . | . . . . . . . . Kills . | . . . . . . . . Allies Corrupted . | . . . . . . . . Allies Melted . | . . . . . . . . Intel | -11 -10 -9 -8 -7 -7 -6 -6 ------- Run | Yrd Mat Mat Mat Fac Sto Fac Gar Active Infowar (turns) . | . . . . . . . . Robot Analysis Total . | . . . . . . . . Derelict Logs Recovered . | . . . . . . . . Drone Launches . | . . . . . . . . Drone Recoveries . | . . . . . . . . Exploration | -11 -10 -9 -8 -7 -7 -6 -6 ------------- Run | Yrd Mat Mat Mat Fac Sto Fac Gar Turns Passed 467 | 9 27 35 51 89 65 48 143 Spaces Moved 755 | 18 53 70 96 167 114 90 147 Core 755 | 18 53 70 96 167 114 90 147 Treads . | . . . . . . . . Legs . | . . . . . . . . Wheels . | . . . . . . . . Hover . | . . . . . . . . Flight . | . . . . . . . . Fastest Speed 50 | 50 50 50 50 50 50 50 50 Average Speed 50 | 50 50 50 50 50 50 50 50 Slowest Speed 50 | 50 50 50 50 50 50 50 50 Overloaded Moves . | . . . . . . . . Propulsion Burnouts . | . . . . . . . . Robots Hopped . | . . . . . . . . Potential Cave-ins . | . . . . . . . . Cave-ins Triggered . | . . . . . . . . Exploration Rate (%) 15 | 3 18 15 16 8 26 2 36 Regions Visited 7 Branch Regions 1 Pre-discovered Areas . | . . . . . . . . Known Exits Taken 1 | . . . . . . 1 . Unknown Exits Taken 6 | 1 1 1 1 1 1 . . Scrap Searched . | . . . . . . . . Spaces Dug . | . . . . . . . . Terrain Destroyed . | . . . . . . . . Melee . | . . . . . . . . Projectile . | . . . . . . . . AOE . | . . . . . . . . Terrain Rammed . | . . . . . . . . Walls Destroyed . | . . . . . . . . Machines Disabled . | . . . . . . . . Actions | -11 -10 -9 -8 -7 -7 -6 -6 --------- Run | Yrd Mat Mat Mat Fac Sto Fac Gar Total 835 | 17 52 69 98 171 121 92 215 Wait 63 | . . . . 5 2 . 56 Move 745 | 17 52 69 95 166 113 89 144 Hop . | . . . . . . . . Pick Up 1 | . . . 1 . . . . Fast Attach . | . . . . . . . . Attach . | . . . . . . . . Detach . | . . . . . . . . Swap . | . . . . . . . . Drop . | . . . . . . . . Fire . | . . . . . . . . Melee . | . . . . . . . . Ram 11 | . . . 2 . 6 3 . Kick . | . . . . . . . . Crush . | . . . . . . . . Escape Stasis 15 | . . . . . . . 15 Rewire . | . . . . . . . . Trap . | . . . . . . . . Miscellaneous . | . . . . . . . . Route ------- -11/Scrapyard -10/Materials -9/Materials (discovered 2 exits: [*Mat] / [*Min]) -8/Materials -7/Factory -7/Storage -6/Factory -6/Garrison (discovered 1 exit: [*Fac]) History --------- Turn | Location | Event 4 | -11/Scrapyard | Discovered new exit (range 13) 10 | -11/Scrapyard | Entered Materials 34 | -10/Materials | Discovered new exit (range 5) 37 | -10/Materials | Entered another Materials area 37 | -9/Materials | Evolved 2 slots: Utility x2 71 | -9/Materials | Discovered new exit (range 3) 72 | -9/Materials | Discovered new exit (range 8) 72 | -9/Materials | Entered another Materials area 72 | -8/Materials | Evolved 2 slots: Utility x2 118 | -8/Materials | Discovered new exit (range 12) 123 | -8/Materials | Entered Factory 123 | -7/Factory | Evolved 2 slots: Utility x2 204 | -7/Factory | Discovered new exit (range 8) 212 | -7/Factory | Entered Storage 259 | -7/Storage | Core integrity fell below 50% 274 | -7/Storage | Discovered new exit (range 8) 277 | -7/Storage | Entered Factory 277 | -6/Factory | Evolved 2 slots: Utility x2 305 | -6/Factory | Build established: Mutant 324 | -6/Factory | Identified exit to Garrison 325 | -6/Factory | Entered Garrison 432 | -6/Garrison | Discovered new exit (range 14) 439 | -6/Garrison | Attempted to access garrison exit controls, blocked by remote lockdown 457 | -6/Garrison | Core integrity fell below 50% 464 | -6/Garrison | Core integrity fell below 20% 468 | -6/Garrison | Destroyed by B-48 Gladiator with Mace Last Messages --------------- 00419_ Field strength at 46. 00420_ Field strength at 40. 00421_ Field strength at 34. 00422_ Field strength at 28. 00423_ Field strength at 22. 00424_ Field strength at 16. 00425_ Field strength at 10. 00426_ Field strength at 4. 00427_ Stasis field depleted. 00432_ EXIT=FOUND 00439_ Attempting to access garrison exit controls... 00439_ Remote lockdown engaged. 00447_ Connecting with Garrison Terminal... 00447_ ALERT: Suspicious activity at Terminal G002. Transmitting hostile system tracking data. Garrison Door activated. 00468_ P-60 Hacker resets S-27 Virus, system corruption cleaned. Map ----- +----------------------------------------------------+ | | | | | | | | | | | ???????????????????????????????????? | | ???????????????????????????????????? | | ???????????????????????????????????? | | ????????##?###?????????????????????? | | ????????#"# #?????????????????????? | | ????????#" #?????????????????????? | | ????????#" #?????????????????????? | | ?????????" #?????????????????????? | | ??????????# #?????????????????????? | | ??????????# ###???????????????????? | | ??????????# #???????????????????? | | ??????????# #???????????????????? | | ??????????# #???????????????????? | | ??????????# ###???????????????????? | | ??????????# s#?????????????????????? | | ??????????# #?##################### | | ??????????# #?# # | | ??????????#ss#?# # | | ??????????# #?# # | | ??????????# #?# # | | ??????????#@ #?# # | | ?????????##bp#?# # | | ?????????#Tg #?# # | | ?????????## g### # | | ??????????# g # | | ??????????# < # | | ??????????# ### # | | ??????????# #?# # | | ??????????# #?# # | | ??????????# #?# # | | ??????????# #?# | | ??????????# #?# | | ??????????# #?# # | | ??????????# #?# # | | ??????????# #?# # | | ??????????# #?################## # | | ??????????# #??????????????????# # | | ??????????# #??????????????????# # | | ??????????# #??????????????????# # | | ??????????# #??????????????????# # | | ??????????# #??????????????????# # | | ??????????# #??????????????????# # | | ??????????# #??????????????????# # | | ??????????# #################### # | | ??????????# | +----------------------------------------------------+ Best States ------------- Heat Dissipation 37 Energy Generation 5 Energy Capacity 100 Matter Stores 169 Matter Capacity 300 Sight Range 16 Terrain Scan Density 10 Evasion (%) 50 Item Schematics ----------------- None Robot Schematics ------------------ None Fabricated ------------ Nothing Repaired ---------- Nothing Alien Tech Used ----------------- None Achievements -------------- None Challenges ------------ None Game ------ Seed LargeSniperMultirail Manual? 0 Play Time 00:09:57 Cumulative 18.9 hours Start 2025.07.10 @ 21:04:52 End 2025.07.10 @ 21:13:18 Sessions 1 Manual Loads 0 Difficulty Rogue Special Mode None Game No. 27 Rogue 27 Adventurer 0 Explorer 0 Win Type - Total 0 Types 0/0/0/0/0/0/0/0/0/0 Lore% 17 Gallery% 18 Achievement% 24 Wizard Run 0 Options --------- Layout 1 ASCII 0 Keyboard 0 Movement Mouse Keybinds 0 Fullscreen 1 Font 24/Smallcaps Map View 50x35 Zoom Use 0% Tactical HUD 1 Map Filters NONE Filters NONE Steam 1 RUN: 9bb3d53e-3567-4d30-92fb-32c66cc5ef3d